Cogmind - Beta 13 @@@ ROGUE MODE // 2024.07.31 @ 19:48:08 Player: whimsical Result: Self-destructed Performance ------------- Evolutions (2) 1000 Regions Visited (4) 800 Robots Destroyed (26) 130 Value Destroyed (493) 493 Prototype IDs (1) 20 Alien Tech Used (0) 0 Bonus (0) 0 TOTAL SCORE: 2443 Bonus ------- None Cogmind --------- Core Integrity 67/550 Matter 352/500 Energy 100/100 System Corruption 0% Temperature Cool (0) Movement Core (100) Ox1 Location -8/Materials Parts ------- > --- POWER (1) -------- (None) > --- PROPULSION (4) --- (None) > --- UTILITY (2) ------ High-capacity Matter Pod > --- WEAPON (4) ------- (None) > --- INVENTORY (5) ---- Backup Power I Peak State ------------ > --- POWER ------------ Improved Ion Engine > --- PROPULSION ------- Light Treads Light Treads Light Treads Flight Unit > --- UTILITY ---------- High-capacity Matter Pod Hardlight Generator > --- WEAPON ----------- Improved EM Shotgun Spread Laser > --- INVENTORY -------- Backup Power I [Rating: 15] Favorites ----------- Power Light Ion Engine Engine Light Ion Engine Propulsion Aluminum Leg Treads Light Treads Leg Aluminum Leg Flight Unit Flight Unit Utility Sensor Array Device Sensor Array Storage High-capacity Matter Pod Protection Light Armor Plating Weapon Spread Laser Energy Gun Spread Laser Ballistic Gun Light Assault Rifle Launcher Grenade Launcher Build | -11 -10 -9 -9 -8 ------- Run | Yrd Mat Mat Min Mat Slots Evolved 4 | . . 2 . 2 Power . | . . . . . Propulsion 2 | . . 2 . . Utility . | . . . . . Weapon 2 | . . . . 2 Parts Attached 35 | 5 7 6 5 12 Power 6 | 1 1 1 1 2 Engine 6 | 1 1 1 1 2 Core . | . . . . . Reactor . | . . . . . Propulsion 12 | 2 1 2 3 4 Treads 4 | . . . . 4 Leg 5 | 2 1 2 . . Wheel . | . . . . . Hover . | . . . . . Flight 3 | . . . 3 . Utility 6 | . 2 . . 4 Device 4 | . 2 . . 2 Storage 1 | . . . . 1 Processor . | . . . . . Hackware . | . . . . . Protection 1 | . . . . 1 Artifact . | . . . . . Weapon 11 | 2 3 3 1 2 Energy Gun 2 | . . . . 2 Energy Cannon . | . . . . . Ballistic Gun 6 | 2 1 2 1 . Ballistic Cannon . | . . . . . Launcher 3 | . 2 1 . . Special Weapon . | . . . . . Impact Weapon . | . . . . . Slashing Weapon . | . . . . . Piercing Weapon . | . . . . . Special Melee Weapon . | . . . . . Unidentified Prototypes 1 | . . . . 1 Parts Lost 26 | . 1 4 8 13 Power 4 | . 1 1 . 2 Propulsion 11 | . . 1 4 6 Utility 5 | . . 1 1 3 Weapon 6 | . . 1 3 2 Highest Loss Streak 12 | . 1 4 12 7 To Critical Strikes . | . . . . . Average Slot Usage (%) 65 | . 76 95 23 55 Engine 8 | . 11 9 4 7 Treads 6 | . . . . 12 Leg 14 | . 27 41 2 . Flight 4 | . . . 11 8 Device 8 | . 9 20 1 5 Storage 4 | . . . . 9 Energy Gun 5 | . . . . 11 Ballistic Gun 7 | . 17 14 4 . Launcher 3 | . 9 7 . . Naked Turns 19 | . . . 19 . Heaviest Build 22 | 6 9 9 2 22 Greatest Support 60 | 20 20 40 12 60 Greatest Overweight (x) 6 | . . . . 6 Average Overweight (x) . | . . . . 1 Largest Inventory Capacity 5 | 5 5 5 5 5 Average Capacity 5 | 5 5 5 5 5 Most Carried 5 | 3 5 4 3 2 Average Carried 2 | . 3 3 2 1 Final Capacity 5 | 5 5 5 5 5 Final Carried 5 | 1 5 3 1 1 Class Distribution -------------------- 81% | Mutant 18% | Scavenger-Mutant Dominant Class ---------------- Mutant | -10/Materials Mutant | -9/Materials Mutant | -9/Mines Mutant | -8/Materials Resources | -11 -10 -9 -9 -8 ----------- Run | Yrd Mat Mat Min Mat Matter Collected 572 | 201 80 . 18 273 Remotely . | . . . . . Salvage Created 460 | . 131 169 49 111 Parts 57 | . 16 26 7 8 Haulers Intercepted 1 | . . 1 . . Recyclers Shooed . | . . . . . Parts Field Recycled . | . . . . . Retrieved Matter . | . . . . . Parts Self-Destructed . | . . . . . Prevented . | . . . . . Kills | -11 -10 -9 -9 -8 ------- Run | Yrd Mat Mat Min Mat Combat Hostiles Destroyed 22 | . 7 8 4 3 Guns 6 | . . . 4 2 AOE 16 | . 7 8 . 1 Classes Destroyed 7 | . 3 3 . 1 Builder 1 | . . 1 . . Hauler 1 | . . 1 . . Recycler 1 | . . 1 . . Watcher 1 | . 1 . . . Swarmer 15 | . 3 8 4 . Grunt 4 | . 4 . . . Sentry 3 | . . . . 3 Best Kill Streak 12 | . 6 11 12 2 Combat Bots Only 9 | . 5 8 9 2 Max Kills in Single Turn 3 | . 3 3 1 1 Gunslinging . | . . . . . Exploded 3 | . 3 2 . 1 Melee . | . . . . . Uniques/NPCs Destroyed . | . . . . . Combat | -11 -10 -9 -9 -8 -------- Run | Yrd Mat Mat Min Mat Hostile Shots Fired 321 | . 32 80 84 125 Missed 100 | . 10 29 28 33 Damage Taken 2615 | . 273 461 446 1435 Core 888 | . 62 73 270 483 Absorbed by Shields 92 | . . . . 92 Regen/Repaired (Parts) 26 | . 26 . . . Core Remaining (%) 63 | 100 75 . 14 . Volleys Fired 39 | . 12 7 9 11 Largest 2 | . 2 2 2 2 Hottest 110 | . 50 50 40 110 Shots Fired 66 | . 23 14 12 17 Gun 54 | . 17 8 12 17 Cannon . | . . . . . Launcher 12 | . 6 6 . . Special . | . . . . . Kinetic 37 | . 17 8 12 . Thermal 11 | . . . . 11 Explosive 12 | . 6 6 . . Electromagnetic 6 | . . . . 6 Robot Hit Streak 7 | . 4 1 4 7 Robot Miss Streak 6 | . 3 6 3 5 Penetration Max . | . . . . . Secondary Targets 1 | . . . 1 . Max Gunslinging Chain 1 | . . . 1 . Shots Hit Robots 39 | . 14 2 7 16 Core Hits 60 | . 13 18 6 23 Critical Kills . | . . . . . Critical Parts Destroyed . | . . . . . Critical Strikes . | . . . . . Melee Attacks . | . . . . . Impact . | . . . . . Slashing . | . . . . . Piercing . | . . . . . Sneak Attacks . | . . . . . Combat Hostiles . | . . . . . Follow-up Attacks . | . . . . . Damage Inflicted 1620 | . 530 643 86 361 Guns 412 | . 93 8 86 225 Cannons . | . . . . . Explosions 1178 | . 437 635 . 106 Melee . | . . . . . Ramming 30 | . . . . 30 Kinetic 187 | . 93 8 86 . Thermal 155 | . . . . 155 Explosive 1178 | . 437 635 . 106 Electromagnetic 70 | . . . . 70 Impact . | . . . . . Slashing . | . . . . . Piercing . | . . . . . Highest Corruption . | . . . . . Average Corruption . | . . . . . Corruption Purged . | . . . . . Corruption Blocked . | . . . . . Overload Shots . | . . . . . Overflow Damage 15 | . 7 8 . . Projectiles . | . . . . . Explosions 15 | . 7 8 . . Melee . | . . . . . Knockbacks . | . . . . . Impact . | . . . . . Kinetic . | . . . . . Secondary . | . . . . . Self-Inflicted Damage 140 | . 15 11 . 114 Shots 3 | . 1 1 . 1 Rammed 25 | . . . . 25 Targets Rammed 25 | . . . . 25 Kicked . | . . . . . Crushed . | . . . . . Highest Temperature 180 | . 35 24 . 180 Average Temperature 40 | . 17 6 . 57 Received Heat Transfer 857 | . 102 54 . 701 Siege Activations . | . . . . . Robots Corrupted . | . . . . . Combat Hostiles . | . . . . . Parts Fried . | . . . . . Impact Corruptions . | . . . . . Robots Melted . | . . . . . Combat Hostiles . | . . . . . Parts Melted . | . . . . . Heat Transferred 200 | . . . . 200 Parts Sabotaged . | . . . . . Parts Stolen . | . . . . . Parts Stripped . | . . . . . Power Chain Reactions . | . . . . . Alert | -11 -10 -9 -9 -8 ------- Run | Yrd Mat Mat Min Mat Peak Influence 334 | . 259 334 166 220 Initial 126 | . . 109 126 62 Average 128 | . 155 151 136 122 Maximum Alert Level 1 | . 1 1 . 1 Low Security (%) 71 | 100 74 79 100 59 Level 1 28 | . 25 20 . 40 Level 2 . | . . . . . Level 3 . | . . . . . Level 4 . | . . . . . Level 5 . | . . . . . High Security . | . . . . . Max Security . | . . . . . Squads Dispatched 2 | . 1 . . 1 Investigation . | . . . . . Extermination . | . . . . . Reinforcement 2 | . 1 . . 1 Assault . | . . . . . Garrison . | . . . . . Intercept . | . . . . . Searches Triggered . | . . . . . Construction Impeded . | . . . . . Haulers Reinforced . | . . . . . Active Scanning Responses . | . . . . . Cargo Convoy Interrupts . | . . . . . Stealth | -11 -10 -9 -9 -8 --------- Run | Yrd Mat Mat Min Mat Distress Signals 1 | . 1 . . . Communications Jammed . | . . . . . Distress Signals . | . . . . . Times Spotted 39 | . 10 12 8 9 Peak Tracking Total 13 | . 3 13 7 4 Tactical Retreats 2 | . . 1 1 . Traps | -11 -10 -9 -9 -8 ------- Run | Yrd Mat Mat Min Mat Traps Triggered . | . . . . . Indirectly . | . . . . . Trap Hack Attempts . | . . . . . Triggered . | . . . . . Disarmed . | . . . . . Reprogrammed . | . . . . . Reused . | . . . . . Traps Extracted . | . . . . . Installed . | . . . . . Triggered . | . . . . . Machines | -11 -10 -9 -9 -8 ---------- Run | Yrd Mat Mat Min Mat Machines Disabled 4 | . 1 1 . 2 Max in Single Turn 2 | . 1 1 . 2 Machines Repaired . | . . . . . Machines Dismantled . | . . . . . Machines Sabotaged . | . . . . . Overloaded Fab Kills . | . . . . . Hacking | -11 -10 -9 -9 -8 --------- Run | Yrd Mat Mat Min Mat Machines Accessed 2 | . 1 . . 1 Terminals 1 | . . . . 1 Fabricators . | . . . . . Repair Stations 1 | . 1 . . . Recycling Units . | . . . . . Scanalyzers . | . . . . . Garrison Access . | . . . . . Total Hacks 10 | . 6 . . 4 Successful 9 | . 6 . . 3 Failed 1 | . . . . 1 Catastrophic . | . . . . . Database Lockouts . | . . . . . Manual 1 | . . . . 1 Terminals 4 | . . . . 4 Fabricators . | . . . . . Repair Stations 6 | . 6 . . . Recycling Units . | . . . . . Scanalyzers . | . . . . . Garrison Access . | . . . . . Terminal Hacks 3 | . . . . 3 Record 2 | . . . . 2 Branch Access Points 1 | . . . . 1 Fabricator Hacks . | . . . . . Repair Station Hacks 6 | . 6 . . . Scan Component 3 | . 3 . . . Repair 3 | . 3 . . . Recycling Unit Hacks . | . . . . . Scanalyzer . | . . . . . Garrison Access Hacks . | . . . . . Unauthorized Hacks . | . . . . . Terminals . | . . . . . Fabricators . | . . . . . Repair Stations . | . . . . . Recycling Units . | . . . . . Scanalyzers . | . . . . . Garrison Access . | . . . . . Data Cores Recovered . | . . . . . Used . | . . . . . Hacking Detections 2 | . 1 . . 1 Full Trace Events . | . . . . . Feedback Events . | . . . . . Feedback Blocked . | . . . . . Robot Schematics Acquired . | . . . . . Robots Built . | . . . . . Authchips . | . . . . . Time . | . . . . . Total Robot Build Rating . | . . . . . Part Schematics Acquired . | . . . . . Parts Built . | . . . . . Authchips . | . . . . . Time . | . . . . . Total Part Build Rating . | . . . . . Parts Repaired 3 | . 3 . . . Time 78 | . 78 . . . Parts Recycled . | . . . . . Recycled Matter . | . . . . . Retrieved Matter . | . . . . . Retrieved Components . | . . . . . Parts Scanalyzed . | . . . . . Part Schematics Acquired . | . . . . . Parts Damaged . | . . . . . Bothacking | -11 -10 -9 -9 -8 ------------ Run | Yrd Mat Mat Min Mat Used RIF Installer . | . . . . . Robots Hacked . | . . . . . Non-combat . | . . . . . Combat . | . . . . . Robot Hacks Applied . | . . . . . Relay Couplers Released . | . . . . . Fabnet Peak Effective % . | . . . . . Robots Rewired . | . . . . . Allies Hacked . | . . . . . Hacks Repelled . | . . . . . Allies | -11 -10 -9 -9 -8 -------- Run | Yrd Mat Mat Min Mat Total Allies . | . . . . . Largest Group . | . . . . . Highest-Rated Group . | . . . . . Highest-Rated Ally . | . . . . . Total Orders . | . . . . . Ally Attacks . | . . . . . Total Damage . | . . . . . Kills . | . . . . . Allies Corrupted . | . . . . . Allies Melted . | . . . . . Intel | -11 -10 -9 -9 -8 ------- Run | Yrd Mat Mat Min Mat Robot Analysis Total . | . . . . . Derelict Logs Recovered . | . . . . . Drone Launches . | . . . . . Drone Recoveries . | . . . . . Exploration | -11 -10 -9 -9 -8 ------------- Run | Yrd Mat Mat Min Mat Turns Passed 1038 | 67 256 160 76 479 Spaces Moved 712 | 57 172 111 120 252 Core 140 | 14 . . 41 85 Treads 124 | . . . . 124 Legs 326 | 43 172 111 . . Wheels . | . . . . . Hover . | . . . . . Flight 122 | . . . 79 43 Fastest Speed 34 | 50 120 120 34 37 Average Speed 116 | 102 120 120 41 152 Slowest Speed 350 | 120 120 120 50 350 Overloaded Moves . | . . . . . Propulsion Burnouts . | . . . . . Robots Hopped . | . . . . . Cave-ins Triggered . | . . . . . Exploration Rate (%) 19 | 5 32 11 28 20 Regions Visited 4 Branch Regions 1 Pre-discovered Areas 1 | . . . 1 . Known Exits Taken . | . . . . . Unknown Exits Taken 4 | 1 1 1 1 . Scrap Searched . | . . . . . Spaces Dug . | . . . . . Terrain Destroyed 95 | . 41 37 . 17 Melee . | . . . . . Projectile . | . . . . . AOE 95 | . 41 37 . 17 Terrain Rammed . | . . . . . Walls Destroyed . | . . . . . Machines Disabled . | . . . . . Actions | -11 -10 -9 -9 -8 --------- Run | Yrd Mat Mat Min Mat Total 826 | 64 197 123 133 309 Wait 8 | . . . . 8 Move 708 | 56 171 110 119 252 Hop . | . . . . . Pick Up 11 | 3 7 . . 1 Fast Attach 19 | 3 3 1 3 9 Attach 10 | 2 2 2 2 2 Detach . | . . . . . Swap 6 | . 2 3 . 1 Drop . | . . . . . Fire 39 | . 12 7 9 11 Melee . | . . . . . Ram . | . . . . . Kick . | . . . . . Crush 25 | . . . . 25 Escape Stasis . | . . . . . Rewire . | . . . . . Trap . | . . . . . Miscellaneous . | . . . . . Route ------- -11/Scrapyard -10/Materials -9/Materials -9/Mines -8/Materials History --------- Turn | Location | Event 2 | -11/Scrapyard | Met Revision 17 37 | -11/Scrapyard | Discovered new exit (range 16) 68 | -11/Scrapyard | Entered Materials 198 | -10/Materials | Repaired Aluminum Leg 198 | -10/Materials | Repaired Aluminum Leg 224 | -10/Materials | Repaired Grenade Launcher 297 | -10/Materials | Discovered new exit (range 11) 324 | -10/Materials | Entered another Materials area 324 | -9/Materials | Evolved 2 slots: Propulsion x2 347 | -9/Materials | Build established: Mutant 403 | -9/Materials | Discovered new exit (range 15) 484 | -9/Materials | Entered Mines 505 | -9/Mines | Destroyed 9 combat bots 517 | -9/Mines | Core integrity fell below 50% 543 | -9/Mines | Learned location of Storage (-9) 547 | -9/Mines | Core integrity fell below 20% 558 | -9/Mines | Discovered new exit (range 5) 560 | -9/Mines | Entered Materials 560 | -8/Materials | Evolved 2 slots: Weapon x2 564 | -8/Materials | Lost 12 parts (1p5n2u4w) 706 | -8/Materials | Lost 3 parts (1p1n1u) 945 | -8/Materials | Core integrity fell below 50% 1016 | -8/Materials | Lost 7 parts (1p4n2w) 1028 | -8/Materials | Core integrity fell below 20% 1039 | -8/Materials | Self-destructed Last Messages --------------- Imp. Ion Engine destroyed. Slammed into G-47 Trooper. Imp. EM Shotgun destroyed. Slammed into G-47 Trooper. Lgt. Treads destroyed. Slammed into G-47 Trooper. Spread Laser destroyed. Slammed into G-47 Trooper. Lgt. Treads destroyed. Acquired Lgt. Treads. Slammed into G-47 Trooper. Critical hit (Burn: +37). Slammed into G-47 Trooper. G-47 Trooper suffers critical hit (Burn). Lgt. Treads destroyed. Slammed into G-47 Trooper. G-47 Trooper destroyed. Lgt. Treads destroyed. Critical hit (Burn: +37). Hardlight Generator destroyed. Map ----- +----------------------------------------------------+ | ?????????????????????????????????????????????????? | | ?????????????????????????????????????????????????? | | ?????????????????????????????????????????????????? | | ?????????????????????????????????????????????????? | | ?????????????????????????????????????????????????? | | ?????????????????????????????????????????????????? | | ?????????????????????????????????????????????????? | | ?????????????????????????????????????????????????? | | ?????????????????????????????????????????????????? | | ?????????????????????????????????????????????????? | | ?????????????????????????????????????????????????? | | ?????????????????????????????????????????????????? | | ?????????????????????????????????????????????????? | | ?????????????????????????????????????????????????? | | ?????????????????????????????????????????????????? | | ?????????????????????????????????????????????????? | | ?????????????????????????????????????????????????? | | ?????????????????????????????????????????????????? | | ?????????????????????????????????????????????????? | | ??????????????????????#########??????????????????? | | ??????????????????????# ###+#####??????????? | | ??????????????????????# !! ?????????? | | ??????????????????????# !! ?????????? | | ??????????????????????# !! u ????????? | | ??????????????????????# ????????? | | ??????????????????????# @ ????????? | | ??????????????????????# #?????????? | | ??????????????????????# g #?????????? | | ??????????????????????# g #?????????? | | ??????????????????????# #?????????? | | ??????????????????????# """ g #?????????? | | ??????????????????????# """"" #?????????? | | ??????????????????????## """"" ########### | | ???????????????????????# """"" # # | | ???????????????????????# g""" # "S """ # | | ???????????????????????# # """ """ # | | ???????????????????????# # "" """ # | | ???????????????????????####"T"#### # # | | ??????????????????????????#"""#??# # ! # | | ??????????????????????????#####??# # # | | ???????????????????????????####### # =# | | ???????????????????????????# # #+####+#### | | ???????????????????????????# #? | | ???????????????????????????# T #? | | ???????????????????????????# = #? | | ???????????????????????????# !%############## #? | | ????????????????????######### ## # #? | | ????????????????????# ## ## # #? | | ???????????????????## !!! ## ## # #? | | ???????????????????# !! # ## #?#? | +----------------------------------------------------+ Best States ------------- Heat Dissipation 31 Energy Generation 12 Energy Capacity 265 Matter Stores 352 Matter Capacity 500 Sight Range 16 Robot Scan Range 14 Terrain Scan Density 10 Armor Coverage 150 Evasion (%) 62 Recoil Reduction 3 Particle Charging 15 Item Schematics ----------------- None Robot Schematics ------------------ None Fabricated ------------ Nothing Alien Tech Used ----------------- None Achievements -------------- None Challenges ------------ None Game ------ Seed HackingHackingShredder Manual? 0 Play Time 00:20:47 Cumulative 4.5 hours Start 2024.07.31 @ 19:29:41 End 2024.07.31 @ 19:48:08 Sessions 1 Manual Loads 0 Difficulty Rogue Special Mode None Game No. 10 Rogue 10 Adventurer 0 Explorer 0 Win Type - Total 0 Types 0/0/0/0/0/0/0/0/0 Lore% 7 Gallery% 8 Achievement% 8 Wizard Run 0 Options --------- Layout 1 ASCII 0 Keyboard 1 Movement Vi Keybinds 0 Fullscreen 1 Font 28/SmallcapsGlow Map View 50x43 Zoom Use 0% Tactical HUD 0 Map Filters NONE Filters NONE Steam 0 RUN: 591a8597-2d3c-430e-9377-0917dc824b08